fUSD/lending_fUSD_20250110
["ID","MTS","AMOUNT","RATE_DAILY","PERIOD"]
[348415152,1736523043915,-500.0,8.85e-05,2]
[348415153,1736523043924,-500.0,8.85e-05,2]
[348415155,1736523043934,-500.0,8.85e-05,2]
[348415157,1736523043943,-500.0,8.85e-05,2]
[348415159,1736523043953,-500.0,8.85e-05,2]
[348415161,1736523043962,-500.0,8.85e-05,2]
[348415163,1736523043972,-500.0,8.85e-05,2]
[348415165,1736523043981,-500.0,8.85e-05,2]
[348415166,1736523043991,-500.0,8.85e-05,2]
[348415167,1736523044000,-608.9075737,8.85e-05,2]
[348415168,1736523044010,-500.0,8.85e-05,2]
[348415169,1736523044019,-500.0,8.85e-05,2]
[348415170,1736523044029,-260.19932949,8.85e-05,2]
[348415171,1736523044039,-500.0,8.85e-05,2]
[348415172,1736523044049,-500.0,8.85e-05,2]
[348415173,1736523044058,-500.0,8.85e-05,2]
[348415174,1736523044067,-500.0,8.85e-05,2]
[348415176,1736523044078,-537.76163464,8.85e-05,2]
[348415177,1736523044087,-500.0,8.85e-05,2]
[348415178,1736523044096,-508.4982954,8.85e-05,2]
[348415179,1736523044106,-500.0,8.85e-05,2]
[348415180,1736523044115,-500.0,8.85e-05,2]
[348415181,1736523044124,-500.0,8.85e-05,2]
[348415182,1736523044133,-346.36090801,8.85e-05,2]
[348415183,1736523044142,-500.0,8.85e-05,2]
[348415184,1736523044151,-507.47424146,8.85e-05,2]
[348415185,1736523044161,-500.0,8.85e-05,2]
[348415186,1736523044170,-500.0,8.85e-05,2]
[348415187,1736523044179,-739.45,8.85e-05,2]
[348415188,1736523044188,-500.0,8.85e-05,2]
[348415189,1736523044197,-500.0,8.85e-05,2]
[348415190,1736523044207,-500.0,8.85e-05,2]
[348415191,1736523044217,-500.0,8.85e-05,2]
[348415192,1736523044227,-500.0,8.85e-05,2]
[348415193,1736523044236,-502.80646838,8.85e-05,2]
[348415194,1736523044246,-500.0,8.85e-05,2]
[348415195,1736523044255,-500.0,8.85e-05,2]
[348415196,1736523044264,-381.15370108,8.85e-05,2]
[348415197,1736523044274,-500.0,8.85e-05,2]
[348415198,1736523044283,-500.0,8.85e-05,2]
[348415199,1736523044292,-500.0,8.85e-05,2]
[348415200,1736523044301,-500.0,8.85e-05,2]
[348415201,1736523044310,-500.0,8.85e-05,2]
[348415202,1736523044319,-500.0,8.85e-05,2]
[348415203,1736523044328,-500.0,8.85e-05,2]
[348415204,1736523044338,-500.46,8.85e-05,2]
[348415205,1736523044347,-500.0,8.85e-05,2]
[348415206,1736523044356,-500.0,8.85e-05,2]
[348415207,1736523044365,-500.0,8.85e-05,2]
[348415208,1736523044375,-500.0,8.85e-05,2]
[348415209,1736523044384,-500.0,8.85e-05,2]
[348415210,1736523044394,-500.0,8.85e-05,2]
[348415211,1736523044403,-500.0,8.85e-05,2]
[348415212,1736523044412,-500.0,8.85e-05,2]
[348415213,1736523044422,-500.0,8.85e-05,2]
[348415214,1736523044431,-500.0,8.85e-05,2]
[348415215,1736523044441,-500.0,8.85e-05,2]
[348415216,1736523044450,-500.0,8.85e-05,2]
[348415217,1736523044459,-500.0,8.85e-05,2]
[348415218,1736523044469,-500.0,8.85e-05,2]
[348415219,1736523044478,-855.16,8.85e-05,2]
[348415220,1736523044487,-500.0,8.85e-05,2]
[348415221,1736523044497,-500.0,8.85e-05,2]
[348415222,1736523044506,-500.0,8.85e-05,2]
[348415223,1736523044515,-499.01427277,8.85e-05,2]
[348415224,1736523044526,-802.99,8.85e-05,2]
[348415225,1736523044535,-500.0,8.85e-05,2]
[348415226,1736523044545,-500.0,8.85e-05,2]
[348415227,1736523044555,-505.84222083,8.85e-05,2]
[348415228,1736523044567,-500.0,8.85e-05,2]
[348415229,1736523044578,-500.0,8.85e-05,2]
[348415230,1736523044587,-500.0,8.85e-05,2]
[348415231,1736523044597,-500.0,8.85e-05,2]
[348415232,1736523044607,-503.22,8.85e-05,2]
[348415233,1736523044616,-500.0,8.85e-05,2]
[348415234,1736523044625,-500.0,8.85e-05,2]
[348415235,1736523044636,-500.0,8.85e-05,2]
[348415236,1736523044645,-500.0,8.85e-05,2]
[348415237,1736523044655,-500.0,8.85e-05,2]
[348415238,1736523044665,-500.0,8.85e-05,2]
[348415239,1736523044674,-500.0,8.85e-05,2]
[348415240,1736523044684,-505.77458135,8.85e-05,2]
[348415241,1736523044693,-500.0,8.85e-05,2]
[348415242,1736523044702,-500.0,8.85e-05,2]
[348415243,1736523044712,-500.0,8.85e-05,2]
[348415244,1736523044721,-500.0,8.85e-05,2]
[348415245,1736523044731,-500.0,8.85e-05,2]
[348415246,1736523044741,-508.12876591,8.85e-05,2]
[348415247,1736523044750,-500.0,8.85e-05,2]
[348415248,1736523044759,-500.0,8.85e-05,2]
[348415249,1736523044768,-500.0,8.85e-05,2]
[348415250,1736523044778,-500.0,8.85e-05,2]
[348415251,1736523044788,-500.0,8.85e-05,2]
[348415252,1736523044798,-500.0,8.85e-05,2]
[348415253,1736523044808,-500.36818709,8.85e-05,2]
[348415254,1736523044821,-201.52211186,8.85e-05,2]
[348415255,1736523044830,-500.0,8.85e-05,2]
[348415256,1736523044839,-500.0,8.85e-05,2]
[348415257,1736523044849,-501.9587472,8.85e-05,2]
[348415258,1736523044858,-500.0,8.85e-05,2]
[348415259,1736523044868,-500.0,8.85e-05,2]
[348415260,1736523044878,-500.0,8.85e-05,2]
[348415261,1736523044887,-500.0,8.85e-05,2]
[348415262,1736523044897,-500.0,8.85e-05,2]
[348415263,1736523044906,-500.0,8.85e-05,2]
[348415264,1736523044915,-500.0,8.85e-05,2]
[348415265,1736523044925,-500.0,8.85e-05,2]
[348415266,1736523044935,-500.0,8.85e-05,2]
[348415267,1736523044944,-719.56,8.85e-05,2]
[348415268,1736523044954,-500.0,8.85e-05,2]
[348415269,1736523044963,-500.0,8.85e-05,2]
[348415270,1736523044972,-500.0,8.85e-05,2]
[348415271,1736523044982,-500.0,8.85e-05,2]
[348415272,1736523044991,-500.0,8.85e-05,2]
[348415273,1736523045000,-501.04170425,8.85e-05,2]
[348415274,1736523045009,-500.0,8.85e-05,2]
[348415275,1736523045018,-500.0,8.85e-05,2]
[348415276,1736523045027,-500.0,8.85e-05,2]
[348415277,1736523045037,-501.61734071,8.85e-05,2]
[348415278,1736523045046,-500.0,8.85e-05,2]
[348415279,1736523045056,-500.0,8.85e-05,2]
[348415280,1736523045065,-500.0,8.85e-05,2]
[348415281,1736523045077,-500.0,8.85e-05,2]
[348415282,1736523045087,-500.0,8.85e-05,2]
[348415283,1736523045097,-500.0,8.85e-05,2]
[348415284,1736523045106,-500.0,8.85e-05,2]
[348415285,1736523045117,-500.0,8.85e-05,2]
[348415286,1736523045127,-500.0,8.85e-05,2]
[348415287,1736523045136,-500.0,8.85e-05,2]
[348415288,1736523045146,-500.0,8.85e-05,2]
[348415289,1736523045156,-500.0,8.85e-05,2]
[348415290,1736523045166,-500.0,8.85e-05,2]
[348415291,1736523045176,-500.0,8.85e-05,2]
[348415292,1736523045185,-500.0,8.85e-05,2]
[348415293,1736523045196,-500.0,8.85e-05,2]
[348415294,1736523045206,-500.0,8.85e-05,2]
[348415295,1736523045215,-500.0,8.85e-05,2]
[348415296,1736523045225,-500.0,8.85e-05,2]
[348415297,1736523045235,-500.0,8.85e-05,2]
[348415298,1736523045245,-500.0,8.85e-05,2]
[348415299,1736523045255,-500.0,8.85e-05,2]
[348415300,1736523045265,-500.0,8.85e-05,2]
[348415301,1736523045274,-500.0,8.85e-05,2]
[348415302,1736523045284,-500.0,8.85e-05,2]
[348415303,1736523045294,-500.0,8.85e-05,2]
[348415304,1736523045304,-500.0,8.85e-05,2]
[348415305,1736523045313,-500.0,8.85e-05,2]
[348415306,1736523045327,-500.0,8.85e-05,2]
[348415307,1736523045337,-500.0,8.85e-05,2]
[348415308,1736523045346,-500.0,8.85e-05,2]
[348415309,1736523045355,-500.0,8.85e-05,2]
[348415310,1736523045365,-500.0,8.85e-05,2]
[348415311,1736523045374,-627.11,8.85e-05,2]
[348415312,1736523045384,-500.0,8.85e-05,2]
[348415313,1736523045393,-500.0,8.85e-05,2]
[348415314,1736523045403,-586.59166711,8.85e-05,2]
[348415315,1736523045413,-500.0,8.85e-05,2]
[348415316,1736523045422,-500.0,8.85e-05,2]
[348415317,1736523045431,-500.0,8.85e-05,2]
[348415318,1736523045441,-500.0,8.85e-05,2]
[348415319,1736523045451,-500.0,8.85e-05,2]
[348415320,1736523045460,-500.0,8.85e-05,2]
[348415321,1736523045470,-500.0,8.85e-05,2]
[348415323,1736523045480,-500.0,8.85e-05,2]
[348415324,1736523045489,-500.0,8.85e-05,2]
[348415325,1736523045499,-500.0,8.85e-05,2]
[348415326,1736523045507,-500.41754991,8.85e-05,2]
[348415327,1736523045517,-500.0,8.85e-05,2]
[348415328,1736523045526,-500.0,8.85e-05,2]
[348415329,1736523045536,-500.0,8.85e-05,2]
[348415330,1736523045545,-500.0,8.85e-05,2]
[348415331,1736523045556,-500.0,8.85e-05,2]
[348415332,1736523045571,-805.46,8.85e-05,2]
[348415333,1736523045581,-156.13948592,8.85e-05,2]
[348415334,1736523045590,-500.0,8.85e-05,2]
[348415335,1736523045599,-500.0,8.85e-05,2]
[348415336,1736523045610,-500.0,8.85e-05,2]
[348415337,1736523045620,-500.0,8.85e-05,2]
[348415338,1736523045629,-500.0,8.85e-05,7]
[348415339,1736523045640,-500.0,8.85e-05,2]
[348415340,1736523045650,-500.0,8.85e-05,2]
[348415341,1736523045660,-500.0,8.85e-05,2]
[348415342,1736523045669,-500.0,8.85e-05,2]
[348415343,1736523045679,-500.0,8.85e-05,2]
[348415344,1736523045688,-500.0,8.85e-05,2]
[348415345,1736523045698,-500.0,8.85e-05,2]
[348415346,1736523045707,-500.0,8.85e-05,2]
[348415347,1736523045716,-500.0,8.85e-05,2]
[348415348,1736523045726,-300.0,8.85e-05,2]
[348415349,1736523045735,-500.0,8.85e-05,2]
[348415350,1736523045745,-444.0801414,8.85e-05,2]
[348415351,1736523045754,-500.0,8.85e-05,2]
[348415352,1736523045764,-503.31637706,8.85e-05,2]
[348415353,1736523045773,-500.0,8.85e-05,2]
[348415354,1736523045783,-500.0,8.85e-05,2]
[348415355,1736523045792,-500.0,8.85e-05,2]
[348415356,1736523045802,-500.0,8.85e-05,2]
[348415357,1736523045811,-500.0,8.85e-05,2]
[348415358,1736523045821,-500.0,8.85e-05,2]
[348415359,1736523045831,-500.92485034,8.85e-05,2]
[348415360,1736523045840,-500.0,8.85e-05,2]
[348415361,1736523045849,-500.0,8.85e-05,2]
[348415362,1736523045859,-500.0,8.85e-05,2]
[348415363,1736523045868,-500.0,8.85e-05,2]
[348415364,1736523045877,-553.77560013,8.85e-05,2]
[348415365,1736523045886,-500.0,8.85e-05,2]
[348415366,1736523045895,-500.0,8.85e-05,2]
[348415367,1736523045904,-500.0,8.85e-05,2]
[348415368,1736523045914,-500.0,8.85e-05,2]
[348415369,1736523045923,-500.0,8.85e-05,2]
[348415370,1736523045933,-500.0,8.85e-05,2]
[348415371,1736523045942,-500.0,8.85e-05,2]
[348415372,1736523045952,-500.0,8.85e-05,2]
[348415373,1736523045962,-890.36,8.851e-05,2]
[348415374,1736523045972,-1058.1,8.851e-05,2]
[348415375,1736523045980,-500.0,8.851e-05,2]
[348415376,1736523045990,-500.0,8.851e-05,2]
[348415377,1736523045999,-882.45,8.851e-05,2]
[348415378,1736523046008,-1148.23,8.851e-05,2]
[348415379,1736523046017,-500.0,8.851e-05,2]
[348415380,1736523046027,-717.8,8.851e-05,2]
[348415381,1736523046036,-1318.02,8.851e-05,2]
[348415382,1736523046045,-1445.67,8.851e-05,2]
[348415383,1736523046054,-729.69,8.851e-05,2]
[348415384,1736523046063,-502.21321474,8.851e-05,2]
[348415385,1736523046074,-500.0,8.851e-05,2]
[348415386,1736523046084,-1466.24,8.851e-05,2]
[348415387,1736523046093,-1064.1,8.851e-05,2]
[348415388,1736523046102,-1108.95,8.851e-05,2]
[348415389,1736523046111,-1937.77,8.851e-05,2]
[348415390,1736523046120,-500.0,8.851e-05,2]
[348415391,1736523046129,-2265.16,8.851e-05,2]
[348415392,1736523046139,-500.0,8.851e-05,2]
[348415393,1736523046148,-500.0,8.851e-05,2]
[348415394,1736523046157,-1057.49,8.851e-05,2]
[348415395,1736523046166,-500.0,8.851e-05,2]
[348415396,1736523046234,-500.0,8.851e-05,2]
[348415397,1736523046244,-500.0,8.851e-05,2]
[348415398,1736523046253,-500.0,8.851e-05,2]
[348415399,1736523046262,-1061.54,8.851e-05,2]
[348415400,1736523046271,-1470.67,8.851e-05,2]
[348415401,1736523046280,-500.0,8.851e-05,2]
[348415402,1736523046289,-500.0,8.851e-05,2]
[348415403,1736523046298,-500.0,8.851e-05,2]
[348415405,1736523046307,-745.27,8.851e-05,2]
[348415407,1736523046316,-501.40623838,8.851e-05,2]
[348415408,1736523046328,-476.87998668,8.851e-05,2]
[348415409,1736523046337,-693.6,8.851e-05,2]
[348415410,1736523046346,-3628.93,8.851e-05,2]
[348415411,1736523046355,-500.0,8.851e-05,2]
[348415412,1736523046363,-500.0,8.851e-05,2]
[348415413,1736523046373,-956.24,8.851e-05,2]
[348415414,1736523046381,-616.85,8.851e-05,2]
[348415415,1736523046391,-1012.26,8.851e-05,2]
[348415416,1736523046400,-500.0,8.851e-05,2]
[348415417,1736523046410,-2271.72,8.851e-05,2]
[348415418,1736523046420,-500.0,8.851e-05,2]
[348415419,1736523046429,-500.0,8.851e-05,2]
[348415420,1736523046438,-500.0,8.851e-05,2]
[348415421,1736523046448,-500.0,8.851e-05,2]
[348415422,1736523046457,-1274.35,8.851e-05,2]
[348415423,1736523046466,-4912.19,8.851e-05,2]
[348415424,1736523046475,-572.0,8.851e-05,2]
[348415425,1736523046484,-500.0,8.851e-05,2]
[348415426,1736523046494,-500.0,8.851e-05,2]
[348415427,1736523046503,-696.77,8.851e-05,2]
[348415428,1736523046513,-701.21,8.851e-05,2]
[348415429,1736523046522,-6057.02,8.851e-05,2]
[348415430,1736523046534,-969.86,8.851e-05,2]
[348415431,1736523046543,-500.0,8.851e-05,2]
[348415432,1736523046552,-864.4,8.851e-05,2]
[348415433,1736523046568,-500.0,8.851e-05,2]
[348415434,1736523046578,-500.0,8.851e-05,2]
[348415435,1736523046587,-643.05,8.851e-05,2]
[348415436,1736523046597,-823.49,8.851e-05,2]
[348415437,1736523046608,-696.44,8.851e-05,2]
[348415438,1736523046617,-573.02,8.851e-05,2]
[348415439,1736523046627,-500.0,8.851e-05,2]
[348415440,1736523046637,-500.0,8.851e-05,2]
[348415441,1736523046647,-500.0,8.851e-05,2]
[348415442,1736523046656,-849.34,8.851e-05,2]
[348415443,1736523046666,-500.0,8.851e-05,2]
[348415444,1736523046675,-2741.68,8.851e-05,2]
[348415445,1736523046684,-1090.78,8.851e-05,2]
[348415446,1736523046694,-500.0,8.851e-05,2]
[348415447,1736523046703,-500.0,8.851e-05,2]
[348415448,1736523046713,-928.64,8.851e-05,2]
[348415449,1736523046722,-500.0,8.851e-05,2]
[348415450,1736523046731,-500.0,8.851e-05,2]
[348415451,1736523046742,-500.0,8.851e-05,2]
[348415452,1736523046751,-5865.96,8.851e-05,2]
[348415453,1736523046761,-974.19,8.851e-05,2]
[348415454,1736523046771,-500.0,8.851e-05,2]
[348415455,1736523046780,-871.11,8.851e-05,2]
[348415457,1736523046790,-1238.69,8.851e-05,2]
[348415459,1736523046802,-500.0,8.851e-05,2]
[348415461,1736523046812,-500.0,8.851e-05,2]
[348415463,1736523046822,-500.0,8.851e-05,2]
[348415465,1736523046832,-637.63,8.851e-05,2]
[348415466,1736523046842,-646.12,8.851e-05,2]
[348415467,1736523046851,-500.0,8.851e-05,2]
[348415468,1736523046861,-918.03,8.851e-05,2]
[348415469,1736523046870,-500.0,8.851e-05,2]
[348415470,1736523046879,-1578.46,8.851e-05,2]
[348415471,1736523046889,-1248.67,8.851e-05,2]
[348415472,1736523046898,-1571.99,8.851e-05,2]
[348415473,1736523046907,-1525.3,8.851e-05,2]
[348415474,1736523046917,-900.0,8.9e-05,3]
[348415475,1736523046926,-1137.67,8.923e-05,2]
[348415476,1736523046935,-1500.0,8.951e-05,2]
[348415478,1736523046944,-500.0,8.952e-05,2]
[348415480,1736523046953,-500.0,8.952e-05,2]
[348415482,1736523046963,-500.0,8.952e-05,2]
[348415484,1736523046971,-500.0,8.952e-05,2]
[348415486,1736523046981,-500.0,8.952e-05,2]
[348415487,1736523046990,-500.0,8.952e-05,2]
[348415488,1736523046999,-500.0,8.952e-05,2]
[348415489,1736523047008,-500.0,8.952e-05,2]
[348415490,1736523047018,-2465.53,8.952e-05,2]
[348415491,1736523047027,-1808.33,8.952e-05,2]
[348415492,1736523047036,-2381.62,8.952e-05,2]
[348415493,1736523047045,-2145.58,8.952e-05,2]
[348415494,1736523047055,-500.63128303,8.97e-05,2]
[348415495,1736523047064,-500.0,8.97e-05,2]
[348415496,1736523047076,-150.83471371,8.97e-05,2]
[348415497,1736523047086,-151.82989447,8.988e-05,2]
[348415499,1736523047095,-151.84399313,8.988e-05,2]
[348415500,1736523047105,-1900.0,9e-05,3]
[348415501,1736523047114,-1111.03,9.011e-05,2]
[348415502,1736523047123,-1204.43,9.011e-05,2]
[348415503,1736523047132,-502.73,9.011e-05,2]
[348415504,1736523047142,-1079.51,9.011e-05,2]
[348415505,1736523047151,-2026.92,9.011e-05,2]
[348415506,1736523047160,-1140.23,9.011e-05,2]
[348415507,1736523047169,-1706.52,9.011e-05,2]
[348415508,1736523047178,-2967.49,9.011e-05,2]
[348415509,1736523047187,-1073.65,9.011e-05,2]
[348415510,1736523047196,-3032.39,9.011e-05,2]
[348415511,1736523047205,-2285.64,9.011e-05,2]
[348415512,1736523047213,-8578.89,9.011e-05,2]
[348415513,1736523047223,-1197.4,9.011e-05,2]
[348415514,1736523047232,-500.0,9.011e-05,2]
[348415515,1736523047241,-1047.01,9.011e-05,2]
[348415516,1736523047250,-500.0,9.011e-05,2]
[348415517,1736523047259,-2700.71,9.011e-05,2]
[348415518,1736523047268,-1067.61,9.011e-05,2]
[348415519,1736523047278,-1530.87,9.011e-05,2]
[348415520,1736523047287,-3626.48,9.011e-05,2]
[348415521,1736523047296,-2057.32,9.011e-05,2]
[348415522,1736523047306,-1865.11,9.011e-05,2]
[348415523,1736523047316,-2720.67,9.011e-05,2]
[348415524,1736523047327,-1947.85,9.011e-05,2]
[348415525,1736523047337,-500.0,9.011e-05,2]
[348415526,1736523047346,-1435.82,9.011e-05,2]
[348415527,1736523047358,-500.0,9.011e-05,2]
[348415528,1736523047368,-3710.53,9.011e-05,2]
[348415529,1736523047377,-500.0,9.011e-05,2]
[348415530,1736523047386,-5054.38,9.011e-05,2]
[348415531,1736523047396,-3553.5,9.011e-05,2]
[348415532,1736523047405,-500.0,9.011e-05,2]
[348415533,1736523047414,-500.0,9.011e-05,2]
[348415534,1736523047424,-500.0,9.011e-05,2]
[348415535,1736523047433,-1028.38,9.011e-05,2]
[348415536,1736523047443,-500.0,9.011e-05,2]
[348415537,1736523047452,-1442.69,9.011e-05,2]
[348415538,1736523047462,-2140.87,9.011e-05,2]
[348415539,1736523047471,-500.0,9.011e-05,2]
[348415540,1736523047481,-1091.06,9.011e-05,2]
[348415541,1736523047491,-501.43689111,9.011e-05,2]
[348415542,1736523047501,-1510.87,9.011e-05,2]
[348415543,1736523047510,-500.0,9.011e-05,2]
[348415544,1736523047520,-500.0,9.011e-05,2]
[348415545,1736523047530,-500.0,9.011e-05,2]
[348415546,1736523047540,-507.20683774,9.011e-05,2]
[348415547,1736523047550,-854.48,9.012e-05,2]
[348415548,1736523047564,-500.0,9.012e-05,2]
[348415549,1736523047575,-500.0,9.012e-05,2]
[348415550,1736523047584,-500.0,9.012e-05,2]
[348415551,1736523047595,-805.07,9.012e-05,2]
[348415552,1736523047604,-1038.56,9.012e-05,2]
[348415553,1736523047614,-196.61835499,9.012e-05,2]
[348415554,1736523047623,-500.0,9.012e-05,2]
[348415555,1736523047634,-918.65,9.012e-05,2]
[348415556,1736523047643,-500.0,9.012e-05,2]
[348415557,1736523047652,-547.38,9.012e-05,2]
[348415558,1736523047662,-500.0,9.012e-05,2]
[348415559,1736523047672,-893.82,9.012e-05,2]
[348415560,1736523047682,-500.0,9.012e-05,2]
[348415561,1736523047692,-500.0,9.012e-05,2]
[348415562,1736523047701,-500.0,9.012e-05,2]
[348415563,1736523047711,-805.35,9.012e-05,2]
[348415564,1736523047720,-500.0,9.012e-05,2]
[348415565,1736523047730,-521.07,9.012e-05,2]
[348415566,1736523047740,-500.0,9.012e-05,2]
[348415567,1736523047750,-1004.75,9.012e-05,2]
[348415568,1736523047760,-500.0,9.012e-05,2]
[348415569,1736523047770,-987.98,9.012e-05,2]
[348415570,1736523047779,-500.0,9.012e-05,2]
[348415571,1736523047789,-534.61,9.012e-05,2]
[348415572,1736523047798,-500.0,9.012e-05,2]
[348415573,1736523047809,-500.0,9.012e-05,2]
[348415574,1736523047819,-500.0,9.012e-05,2]
[348415575,1736523047829,-500.0,9.012e-05,2]
[348415576,1736523047839,-500.0,9.012e-05,2]
[348415577,1736523047848,-500.0,9.012e-05,2]
[348415578,1736523047858,-500.0,9.012e-05,2]
[348415579,1736523047867,-500.0,9.012e-05,2]
[348415580,1736523047877,-500.0,9.012e-05,2]
[348415581,1736523047887,-513.81,9.012e-05,2]
[348415582,1736523047896,-1218.43,9.012e-05,2]
[348415583,1736523047905,-500.0,9.012e-05,2]
[348415584,1736523047915,-709.63,9.012e-05,2]
[348415585,1736523047924,-1283.512745,9.012e-05,2]
[348415586,1736523047933,-904.41,9.012e-05,2]
[348415587,1736523047942,-659.68,9.012e-05,2]
[348415588,1736523047951,-500.0,9.012e-05,2]
[348415589,1736523047961,-1149.66,9.012e-05,2]
[348415590,1736523047970,-500.0,9.012e-05,2]
[348415591,1736523047979,-500.0,9.012e-05,2]
[348415592,1736523047989,-621.04,9.012e-05,2]
[348415593,1736523047998,-1271.813223,9.012e-05,2]
[348415594,1736523048007,-1263.56,9.012e-05,2]
[348415595,1736523048017,-500.0,9.012e-05,2]
[348415596,1736523048026,-807.02,9.012e-05,2]
[348415597,1736523048036,-500.0,9.012e-05,2]
[348415598,1736523048045,-1015.71,9.012e-05,2]
[348415599,1736523048055,-526.56,9.012e-05,2]
[348415600,1736523048066,-500.0,9.012e-05,2]
[348415601,1736523048077,-505.33721338,9.012e-05,2]
[348415602,1736523048087,-1323.52,9.012e-05,2]
[348415603,1736523048096,-500.0,9.012e-05,2]
[348415604,1736523048106,-622.16,9.012e-05,2]
[348415605,1736523048115,-500.0,9.012e-05,2]
[348415606,1736523048125,-1136.5,9.012e-05,2]
[348415607,1736523048134,-500.0,9.012e-05,2]
[348415608,1736523048145,-500.0,9.012e-05,2]
[348415609,1736523048154,-1062.75,9.012e-05,2]
[348415610,1736523048164,-548.7,9.012e-05,2]
[348415611,1736523048174,-500.0,9.012e-05,2]
[348415612,1736523048183,-549.06,9.012e-05,2]
[348415613,1736523048192,-2436.91,9.012e-05,2]
[348415614,1736523048202,-1235.69,9.012e-05,2]
[348415615,1736523048212,-500.0,9.012e-05,2]
[348415616,1736523048221,-868.43,9.012e-05,2]
[348415617,1736523048231,-2216.32,9.012e-05,2]
[348415618,1736523048241,-1172.85,9.012e-05,2]
[348415619,1736523048250,-1262.26,9.012e-05,2]
[348415620,1736523048260,-500.0,9.012e-05,2]
[348415621,1736523048271,-757.13,9.012e-05,2]
[348415622,1736523048281,-1297.26,9.012e-05,2]
[348415623,1736523048291,-500.0,9.012e-05,2]
[348415624,1736523048300,-500.0,9.012e-05,2]
[348415625,1736523048311,-2335.25,9.012e-05,2]
[348415626,1736523048323,-1073.1,9.012e-05,2]
[348415627,1736523048333,-1195.09,9.012e-05,2]
[348415628,1736523048343,-4949.58,9.012e-05,2]
[348415629,1736523048353,-982.76,9.012e-05,2]
[348415630,1736523048363,-880.93,9.012e-05,2]
[348415631,1736523048372,-1239.31,9.012e-05,2]
[348415632,1736523048382,-4906.52,9.012e-05,2]
[348415633,1736523048392,-500.0,9.012e-05,2]
[348415634,1736523048402,-1007.6,9.012e-05,2]
[348415635,1736523048411,-384.82,9.012e-05,2]
[348415636,1736523048421,-500.0,9.012e-05,2]
[348415637,1736523048431,-1023.38,9.012e-05,2]
[348415638,1736523048441,-1248.84,9.012e-05,2]
[348415639,1736523048450,-500.0,9.012e-05,2]
[348415640,1736523048459,-2045.12,9.012e-05,2]
[348415641,1736523048469,-500.0,9.012e-05,2]
[348415642,1736523048479,-716.01,9.012e-05,2]
[348415643,1736523048489,-1174.91,9.012e-05,2]
[348415644,1736523048499,-5917.35,9.012e-05,2]
[348415645,1736523048509,-1009.9,9.012e-05,2]
[348415646,1736523048519,-1469.1,9.012e-05,2]
[348415647,1736523048529,-682.86,9.012e-05,2]
[348415648,1736523048538,-500.0,9.012e-05,2]
[348415649,1736523048548,-299.86718575,9.012e-05,2]
[348415650,1736523048560,-1143.26,9.012e-05,2]
[348415651,1736523048573,-509.43942107,9.012e-05,2]
[348415652,1736523048583,-500.0,9.012e-05,2]
[348415653,1736523048593,-1197.4,9.012e-05,2]
[348415654,1736523048603,-1190.06,9.012e-05,2]
[348415655,1736523048615,-500.82,9.012e-05,2]
[348415656,1736523048625,-4707.64,9.012e-05,2]
[348415657,1736523048636,-952.31,9.012e-05,2]
[348415658,1736523048647,-320.44951002,9.012e-05,2]
[348415659,1736523048656,-160.2895867,9.013e-05,2]
[348415660,1736523048666,-500.67261719,9.013e-05,2]
[348415661,1736523048676,-493.54892919,9.013e-05,2]
[348415662,1736523048685,-500.0,9.013e-05,2]
[348415663,1736523048695,-500.0,9.013e-05,2]
[348415664,1736523048705,-500.0,9.013e-05,2]
[348415665,1736523048716,-500.39038609,9.013e-05,2]
[348415666,1736523048726,-500.55819028,9.013e-05,2]
[348415667,1736523048737,-500.0,9.013e-05,2]
[348415668,1736523048747,-500.0,9.013e-05,2]
[348415669,1736523048757,-500.74272312,9.013e-05,2]
[348415670,1736523048767,-500.3035966,9.013e-05,2]
[348415671,1736523048776,-500.67600703,9.013e-05,2]
[348415672,1736523048786,-500.52511016,9.013e-05,2]